[Event "EYCC Girls-U14 2019"]
[Site "Bratislava"]
[Date "2019.08.07"]
[Round "6.11"]
[White "Pipiras, Filipa Fortuna"]
[Black "Obrochta, Lena"]
[Result "1-0"]
[ECO "D31"]
[WhiteElo "1980"]
[BlackElo "1598"]
[Annotator "NA"]
[PlyCount "55"]
[EventDate "2019.08.02"]
[EventType "swiss"]
[EventCountry "SVK"]
[SourceTitle "playchess.com"]
[Source "ChessBase"]
[SourceQuality "1"]
[TimeControl "40/5400+30:1800+30"]

1. d4 {[%emt 0:00:10]} d5 {[%emt 0:00:00]} 2. c4 {[%emt 0:00:39]} e6 {[%emt 0:00:00]} 3. Nc3 {[%emt 0:00:56]} Be7 {[%emt 0:00:27]} 4. cxd5 {[%emt 0:01:18]} exd5 {[%emt 0:00:06]} 5. Bf4 {[%emt 0:01:28]} c6 {[%emt 0:00:53]} 6. e3 {[%emt 0:01:11]} Bf5 {[%emt 0:01:05]} 7. g4 {[%emt 0:04:56]} Be6 {[%emt 0:00:29]} 8. h4 {[%emt 0:06:46]} Nf6 {[%emt 0:08:02]} 9. f3 {[%emt 0:07:53]} Nbd7 {[%emt 0:09:43]} 10. Bd3 {[%emt 0:02:29]} a6 {[%emt 0:04:38]} 11. Nh3 {[%emt 0:08:04]} c5 {[%emt 0:03:42]} 12. Bc2 {[%emt 0:14:23]} Rc8 {[%emt 0:06:39]} 13. Kf2 {[%emt 0:04:39]} b5 {[%emt 0:03:41]} 14. a3 {[%emt 0:07:24]} Nb6 {[%emt 0:05:36]} 15. Ne2 {[%emt 0:02:30]} Nc4 {[%emt 0:06:56]} 16. b3 {[%emt 0:01:43]} Nb6 {[%emt 0:01:22]} 17. dxc5 {[%emt 0:11:05]} Bxc5 {[%emt 0:04:07]} 18. Ng5 {[%emt 0:04:09]} Bd7 {[%emt 0:02:12]} 19. Ng3 {[%emt 0:05:43]} h6 {[%emt 0:14:10]} 20. Nh3 {[%emt 0:00:16]} Kf8 {[%emt 0:00:31]} 21. Nf5 {[%emt 0:03:40]} Bxf5 {[%emt 0:03:20]} 22. Bxf5 {[%emt 0:00:05]} Rc6 {[%emt 0:01:08]} 23. Rc1 {[%emt 0:02:29]} Qe8 {[%emt 0:02:33]} 24. Rxc5 {[%emt 0:01:19]} Kg8 {[%emt 0:05:19]} 25. Rxc6 {[%emt 0:00:11]} Qxc6 {[%emt 0:00:09]} 26. Qc2 {[%emt 0:00:22]} Qb7 {[%emt 0:02:30]} 27. Qc7 {[%emt 0:00:11]} Qxc7 {[%emt 0:00:45]} 28. Bxc7 {[%emt 0:00:02]} 1-0

[Event "EYCC Girls-U14 2019"]
[Site "Bratislava"]
[Date "2019.08.07"]
[Round "6.12"]
[White "Alekseenko, Mariya"]
[Black "Kirchei, Viktoriia"]
[Result "0-1"]
[ECO "E06"]
[WhiteElo "1848"]
[BlackElo "2006"]
[Annotator "NA"]
[PlyCount "84"]
[EventDate "2019.08.02"]
[EventType "swiss"]
[EventCountry "SVK"]
[SourceTitle "playchess.com"]
[Source "ChessBase"]
[SourceQuality "1"]
[TimeControl "40/5400+30:1800+30"]

1. c4 {[%emt 0:00:00]} Nf6 {[%emt 0:00:00]} 2. d4 {[%emt 0:00:00]} e6 {[%emt 0:00:00]} 3. g3 {[%emt 0:00:00]} d5 {[%emt 0:00:15]} 4. Bg2 {[%emt 0:00:00]} Be7 {[%emt 0:00:12]} 5. Nf3 {[%emt 0:00:00]} O-O {[%emt 0:00:08]} 6. O-O {[%emt 0:00:39]} dxc4 {[%emt 0:00:10]} 7. Qa4 {[%emt 0:02:09]} a6 {[%emt 0:00:08]} 8. Qxc4 {[%emt 0:00:18]} b5 {[%emt 0:00:08]} 9. Qc2 {[%emt 0:01:26]} Bb7 {[%emt 0:00:22]} 10. Nbd2 {[%emt 0:03:07]} Nbd7 {[%emt 0:02:13]} 11. b3 {[%emt 0:08:52]} Rc8 {[%emt 0:04:31]} 12. Bb2 {[%emt 0:01:10]} c5 {[%emt 0:00:46]} 13. Qd1 {[%emt 0:03:55]} cxd4 {[%emt 0:12:33]} 14. Nxd4 {[%emt 0:06:00]} Bxg2 {[%emt 0:00:24]} 15. Kxg2 {[%emt 0:00:04]} Nc5 {[%emt 0:01:01]} 16. N2f3 {[%emt 0:03:16]} Qb6 {[%emt 0:01:18]} 17. e3 {[%emt 0:03:12]} Nce4 {[%emt 0:04:15]} 18. Rc1 {[%emt 0:03:54]} Qb7 {[%emt 0:03:16]} 19. Kg1 {[%emt 0:21:37]} Rxc1 {[%emt 0:05:47]} 20. Qxc1 {[%emt 0:00:35]} Rc8 {[%emt 0:00:05]} 21. Qa1 {[%emt 0:05:28]} Bc5 {[%emt 0:03:51]} 22. h3 {[%emt 0:05:42]} Nd5 {[%emt 0:14:29]} 23. Kh2 {[%emt 0:09:39]} Nb4 {[%emt 0:05:06]} 24. Ne2 {[%emt 0:13:46]} Bf8 {[%emt 0:01:20]} 25. Nf4 {[%emt 0:02:14]} Rc2 {[%emt 0:14:45]} 26. Kg1 {[%emt 0:00:09]} Nc5 {[%emt 0:10:19]} 27. Ne1 {[%emt 0:01:12]} Rd2 {[%emt 0:01:28]} 28. Bc3 {[%emt 0:02:29]} Nc2 {[%emt 0:00:32]} 29. Nxc2 {[%emt 0:00:42]} Rxc2 {[%emt 0:00:08]} 30. Bd4 {[%emt 0:00:22]} Ne4 {[%emt 0:00:54]} 31. Qd1 {[%emt 0:02:45]} Nd2 {[%emt 0:02:34]} 32. f3 {[%emt 0:00:09]} Qc6 {[%emt 0:01:20]} 33. Rf2 {[%emt 0:00:59]} Rc1 {[%emt 0:00:22]} 34. Rxd2 {[%emt 0:00:05]} Rxd1+ {[%emt 0:00:05]} 35. Rxd1 {[%emt 0:00:02]} Qxf3 {[%emt 0:00:06]} 36. Re1 {[%emt 0:00:57]} Qxg3+ {[%emt 0:00:27]} 37. Kf1 {[%emt 0:00:14]} Bd6 {[%emt 0:02:17]} 38. Rc1 {[%emt 0:00:20]} h6 {[%emt 0:00:44]} 39. Ng2 {[%emt 0:01:08]} Qf3+ {[%emt 0:00:49]} 40. Kg1 {[%emt 0:00:00]} Qxh3 {[%emt 0:00:00]} 41. Rc2 {[%emt 0:00:53]} Bh2+ {[%emt 0:00:56]} 42. Kf1 {[%emt 0:00:09]} Bg3 {[%emt 0:00:46]} 0-1

[Event "EYCC Girls-U14 2019"]
[Site "Bratislava"]
[Date "2019.08.07"]
[Round "6.13"]
[White "Zhou, Lulu"]
[Black "Kucharska, Helena"]
[Result "1-0"]
[ECO "C11"]
[WhiteElo "1944"]
[BlackElo "1543"]
[Annotator "NA"]
[PlyCount "69"]
[EventDate "2019.08.02"]
[EventType "swiss"]
[EventCountry "SVK"]
[SourceTitle "playchess.com"]
[Source "ChessBase"]
[SourceQuality "1"]
[TimeControl "40/5400+30:1800+30"]

1. e4 {[%emt 0:00:00]} e6 {[%emt 0:00:00]} 2. d4 {[%emt 0:00:00]} d5 {[%emt 0:00:00]} 3. Nc3 {[%emt 0:00:00]} Nf6 {[%emt 0:00:00]} 4. e5 {[%emt 0:00:00]} Nfd7 {[%emt 0:00:04]} 5. f4 {[%emt 0:00:00]} c5 {[%emt 0:00:20]} 6. Nf3 {[%emt 0:00:00]} Nc6 {[%emt 0:00:20]} 7. Be3 {[%emt 0:00:08]} Be7 {[%emt 0:00:49]} 8. Qd2 {[%emt 0:00:56]} a6 {[%emt 0:01:15]} 9. Be2 {[%emt 0:03:07]} b5 {[%emt 0:05:56]} 10. O-O {[%emt 0:02:29]} O-O {[%emt 0:03:41]} 11. Nd1 {[%emt 0:02:53]} cxd4 {[%emt 0:03:50]} 12. Nxd4 {[%emt 0:00:09]} Nxd4 {[%emt 0:02:07]} 13. Bxd4 {[%emt 0:00:05]} Nc5 {[%emt 0:04:43]} 14. Bd3 {[%emt 0:01:00]} Bb7 {[%emt 0:05:49]} 15. Ne3 {[%emt 0:02:03]} Qc7 {[%emt 0:09:39]} 16. Qf2 {[%emt 0:07:56]} Nd7 {[%emt 0:07:00]} 17. Rae1 {[%emt 0:06:32]} Bc5 {[%emt 0:07:41]} 18. Qh4 {[%emt 0:05:20]} g6 {[%emt 0:05:36]} 19. Bxc5 {[%emt 0:03:06]} Qxc5 {[%emt 0:05:15]} 20. Kh1 {[%emt 0:00:13]} f6 {[%emt 0:10:18]} 21. exf6 {[%emt 0:01:19]} Nxf6 {[%emt 0:00:15]} 22. Ng4 {[%emt 0:04:33]} Nxg4 {[%emt 0:01:10]} 23. Qxg4 {[%emt 0:00:04]} Bc8 {[%emt 0:01:07]} 24. Bxg6 {[%emt 0:06:01]} Kh8 {[%emt 0:00:24]} 25. Qh4 {[%emt 0:07:28]} Ra7 {[%emt 0:04:22]} 26. Re5 {[%emt 0:07:07]} Qd4 {[%emt 0:06:51]} 27. Rh5 {[%emt 0:04:02]} Kg8 {[%emt 0:09:51]} 28. Rxh7 {[%emt 0:06:48]} a5 {[%emt 0:04:21]} 29. c3 {[%emt 0:01:57]} Qc5 {[%emt 0:01:03]} 30. Rh8+ {[%emt 0:00:12]} Kg7 {[%emt 0:00:06]} 31. Qh6+ {[%emt 0:00:37]} Kf6 {[%emt 0:00:09]} 32. Qg5+ {[%emt 0:00:36]} Kg7 {[%emt 0:00:17]} 33. Rh7+ {[%emt 0:00:04]} Kg8 {[%emt 0:00:14]} 34. Bf5+ {[%emt 0:00:20]} Rg7 {[%emt 0:00:15]} 35. Qxg7# {[%emt 0:00:06]} 1-0

[Event "EYCC Girls-U14 2019"]
[Site "Bratislava"]
[Date "2019.08.07"]
[Round "6.14"]
[White "Otetea, Ioana"]
[Black "Reuter, Elisa"]
[Result "1/2-1/2"]
[ECO "B38"]
[WhiteElo "1744"]
[BlackElo "1930"]
[Annotator "NA"]
[PlyCount "61"]
[EventDate "2019.08.02"]
[EventType "swiss"]
[EventCountry "SVK"]
[SourceTitle "playchess.com"]
[Source "ChessBase"]
[SourceQuality "1"]
[TimeControl "40/5400+30:1800+30"]

1. e4 {[%emt 0:00:00]} c5 {[%emt 0:00:00]} 2. Nf3 {[%emt 0:00:00]} Nc6 {[%emt 0:00:00]} 3. d4 {[%emt 0:00:00]} cxd4 {[%emt 0:00:00]} 4. Nxd4 {[%emt 0:00:00]} g6 {[%emt 0:00:00]} 5. c4 {[%emt 0:00:05]} Bg7 {[%emt 0:00:00]} 6. Be3 {[%emt 0:00:11]} Nf6 {[%emt 0:00:00]} 7. Nc3 {[%emt 0:00:06]} O-O {[%emt 0:00:00]} 8. Be2 {[%emt 0:00:04]} d6 {[%emt 0:00:00]} 9. O-O {[%emt 0:00:09]} Bd7 {[%emt 0:00:03]} 10. Re1 {[%emt 0:00:08]} Nxd4 {[%emt 0:00:08]} 11. Bxd4 {[%emt 0:00:12]} Bc6 {[%emt 0:00:05]} 12. Bd3 {[%emt 0:00:05]} a5 {[%emt 0:01:01]} 13. Qd2 {[%emt 0:00:07]} a4 {[%emt 0:02:41]} 14. Nd5 {[%emt 0:03:59]} e6 {[%emt 0:38:08]} 15. Nb4 {[%emt 0:04:35]} Qa5 {[%emt 0:08:10]} 16. Rad1 {[%emt 0:13:05]} Qc7 {[%emt 0:06:11]} 17. Qc3 {[%emt 0:13:33]} e5 {[%emt 0:01:20]} 18. Be3 {[%emt 0:00:11]} Nxe4 {[%emt 0:10:42]} 19. Bxe4 {[%emt 0:00:54]} Bxe4 {[%emt 0:00:05]} 20. c5 {[%emt 0:13:57]} dxc5 {[%emt 0:06:23]} 21. Bxc5 {[%emt 0:00:08]} Rfc8 {[%emt 0:00:11]} 22. Bd6 {[%emt 0:00:14]} Qxc3 {[%emt 0:08:24]} 23. bxc3 {[%emt 0:00:17]} Bf5 {[%emt 0:09:14]} 24. Nd5 {[%emt 0:01:04]} Rd8 {[%emt 0:00:03]} 25. Be7 {[%emt 0:18:42]} Rd7 {[%emt 0:00:59]} 26. Nf6+ {[%emt 0:01:31]} Bxf6 {[%emt 0:00:05]} 27. Rxd7 {[%emt 0:00:11]} Bxd7 {[%emt 0:00:13]} 28. Bxf6 {[%emt 0:00:04]} Ra6 {[%emt 0:01:40]} 29. Bxe5 {[%emt 0:01:57]} f6 {[%emt 0:01:29]} 30. Bd4 {[%emt 0:00:51]} Kf7 {[%emt 0:00:23]} 31. a3 {[%emt 0:01:45]} 1/2-1/2

[Event "EYCC Girls-U14 2019"]
[Site "Bratislava"]
[Date "2019.08.07"]
[Round "6.15"]
[White "Zavivaeva, Emilia"]
[Black "Sumarriva Paulin, Laura"]
[Result "0-1"]
[ECO "C14"]
[WhiteElo "1740"]
[BlackElo "1861"]
[Annotator "NA"]
[PlyCount "78"]
[EventDate "2019.08.02"]
[EventType "swiss"]
[EventCountry "SVK"]
[SourceTitle "playchess.com"]
[Source "ChessBase"]
[SourceQuality "1"]
[TimeControl "40/5400+30:1800+30"]

1. e4 {[%emt 0:00:00]} e6 {[%emt 0:00:00]} 2. d4 {[%emt 0:01:38]} d5 {[%emt 0:00:00]} 3. Nc3 {[%emt 0:00:18]} Nf6 {[%emt 0:00:00]} 4. Bg5 {[%emt 0:00:06]} Be7 {[%emt 0:00:00]} 5. e5 {[%emt 0:00:17]} Nfd7 {[%emt 0:00:05]} 6. Bxe7 {[%emt 0:00:13]} Qxe7 {[%emt 0:00:07]} 7. f4 {[%emt 0:01:00]} O-O {[%emt 0:02:10]} 8. Nf3 {[%emt 0:00:11]} c5 {[%emt 0:00:16]} 9. Qd2 {[%emt 0:00:08]} Nc6 {[%emt 0:00:51]} 10. dxc5 {[%emt 0:00:13]} Nxc5 {[%emt 0:00:21]} 11. O-O-O {[%emt 0:00:36]} a6 {[%emt 0:01:04]} 12. Kb1 {[%emt 0:00:00]} b5 {[%emt 0:01:05]} 13. Qe3 {[%emt 0:00:18]} b4 {[%emt 0:07:05]} 14. Ne2 {[%emt 0:00:09]} a5 {[%emt 0:01:56]} 15. Ned4 {[%emt 0:00:12]} Bd7 {[%emt 0:03:24]} 16. Bd3 {[%emt 0:00:20]} Nxd3 {[%emt 0:02:29]} 17. cxd3 {[%emt 0:00:09]} a4 {[%emt 0:06:43]} 18. g4 {[%emt 0:03:28]} a3 {[%emt 0:03:34]} 19. b3 {[%emt 0:02:40]} f6 {[%emt 0:03:11]} 20. Nxc6 {[%emt 0:12:42]} Bxc6 {[%emt 0:01:26]} 21. Nd4 {[%emt 0:00:14]} Bd7 {[%emt 0:02:26]} 22. Rhe1 {[%emt 0:00:58]} fxe5 {[%emt 0:07:00]} 23. Qxe5 {[%emt 0:07:13]} Qf6 {[%emt 0:00:56]} 24. f5 {[%emt 0:18:41]} exf5 {[%emt 0:20:36]} 25. Qxd5+ {[%emt 0:06:19]} Kh8 {[%emt 0:06:38]} 26. Qxd7 {[%emt 0:06:23]} Rad8 {[%emt 0:03:05]} 27. Qxf5 {[%emt 0:00:33]} Qxd4 {[%emt 0:00:29]} 28. Qe5 {[%emt 0:00:12]} Qxg4 {[%emt 0:08:17]} 29. Rg1 {[%emt 0:02:08]} Qd4 {[%emt 0:00:41]} 30. Rge1 {[%emt 0:06:30]} h6 {[%emt 0:02:37]} 31. Qxd4 {[%emt 0:07:16]} Rxd4 {[%emt 0:01:10]} 32. Re4 {[%emt 0:00:18]} Rxe4 {[%emt 0:01:21]} 33. dxe4 {[%emt 0:00:02]} Rf2 {[%emt 0:00:36]} 34. Rd4 {[%emt 0:02:06]} Rb2+ {[%emt 0:01:12]} 35. Kc1 {[%emt 0:00:15]} Rxa2 {[%emt 0:00:35]} 36. h4 {[%emt 0:02:15]} Rh2 {[%emt 0:02:41]} 37. Rxb4 {[%emt 0:05:06]} Rh1+ {[%emt 0:01:15]} 38. Kc2 {[%emt 0:00:53]} a2 {[%emt 0:00:06]} 39. Ra4 {[%emt 0:00:00]} a1=Q {[%emt 0:00:00]} 0-1

[Event "EYCC Girls-U14 2019"]
[Site "Bratislava"]
[Date "2019.08.07"]
[Round "6.16"]
[White "Dakic, Marta"]
[Black "Sovina, Maria"]
[Result "0-1"]
[ECO "B24"]
[WhiteElo "1680"]
[BlackElo "1757"]
[Annotator "NA"]
[PlyCount "110"]
[EventDate "2019.08.02"]
[EventType "swiss"]
[EventCountry "SVK"]
[SourceTitle "playchess.com"]
[Source "ChessBase"]
[SourceQuality "1"]
[TimeControl "40/5400+30:1800+30"]

1. e4 {[%emt 0:00:00]} c5 {[%emt 0:00:00]} 2. Nc3 {[%emt 0:00:00]} Nc6 {[%emt 0:00:00]} 3. Bb5 {[%emt 0:00:00]} Nd4 {[%emt 0:00:00]} 4. Bc4 {[%emt 0:00:00]} e6 {[%emt 0:00:00]} 5. Nge2 {[%emt 0:00:07]} Nf6 {[%emt 0:00:00]} 6. O-O {[%emt 0:00:14]} a6 {[%emt 0:00:06]} 7. a4 {[%emt 0:00:10]} d5 {[%emt 0:00:05]} 8. exd5 {[%emt 0:00:06]} exd5 {[%emt 0:00:03]} 9. Ba2 {[%emt 0:00:25]} Bd6 {[%emt 0:00:10]} 10. d3 {[%emt 0:02:26]} O-O {[%emt 0:00:07]} 11. Nxd4 {[%emt 0:03:45]} cxd4 {[%emt 0:00:04]} 12. Ne2 {[%emt 0:00:13]} Bg4 {[%emt 0:02:51]} 13. f3 {[%emt 0:06:14]} Bd7 {[%emt 0:01:17]} 14. Kh1 {[%emt 0:02:44]} Bxa4 {[%emt 0:19:50]} 15. Nxd4 {[%emt 0:12:45]} Be5 {[%emt 0:04:08]} 16. Ne2 {[%emt 0:02:41]} Qc7 {[%emt 0:04:19]} 17. Bb1 {[%emt 0:12:10]} Bd7 {[%emt 0:05:48]} 18. f4 {[%emt 0:05:33]} Bd6 {[%emt 0:00:12]} 19. Nd4 {[%emt 0:11:29]} Rfe8 {[%emt 0:10:47]} 20. h3 {[%emt 0:06:34]} Qb6 {[%emt 0:05:52]} 21. c3 {[%emt 0:03:50]} Re7 {[%emt 0:07:52]} 22. Bc2 {[%emt 0:06:13]} Bc5 {[%emt 0:05:43]} 23. Nf3 {[%emt 0:03:09]} Nh5 {[%emt 0:02:10]} 24. Kh2 {[%emt 0:00:15]} Be3 {[%emt 0:04:21]} 25. Ne5 {[%emt 0:02:20]} Nxf4 {[%emt 0:02:09]} 26. Nxd7 {[%emt 0:02:39]} Rxd7 {[%emt 0:00:30]} 27. Rxf4 {[%emt 0:00:56]} Bxf4+ {[%emt 0:00:02]} 28. Bxf4 {[%emt 0:00:10]} Qxb2 {[%emt 0:03:12]} 29. Be5 {[%emt 0:01:54]} Qb6 {[%emt 0:01:41]} 30. Qg4 {[%emt 0:00:48]} f5 {[%emt 0:02:12]} 31. Qxf5 {[%emt 0:02:03]} Rf7 {[%emt 0:00:10]} 32. Qg4 {[%emt 0:01:11]} Re8 {[%emt 0:04:33]} 33. Bd4 {[%emt 0:01:53]} Qd6+ {[%emt 0:02:43]} 34. Qg3 {[%emt 0:02:20]} Qxg3+ {[%emt 0:03:29]} 35. Kxg3 {[%emt 0:00:04]} Re2 {[%emt 0:01:05]} 36. Bb3 {[%emt 0:00:22]} Rf5 {[%emt 0:00:26]} 37. Kh2 {[%emt 0:01:53]} Rb2 {[%emt 0:01:41]} 38. Ba2 {[%emt 0:03:19]} Rg5 {[%emt 0:00:50]} 39. Kh1 {[%emt 0:00:06]} Re2 {[%emt 0:02:51]} 40. Bb3 {[%emt 0:00:00]} Rb2 {[%emt 0:00:00]} 41. Ba2 {[%emt 0:00:49]} Re2 {[%emt 0:07:36]} 42. Bb3 {[%emt 0:00:15]} Kf8 {[%emt 0:10:20]} 43. Rf1+ {[%emt 0:12:58]} Ke8 {[%emt 0:01:07]} 44. Rf2 {[%emt 0:00:08]} Rxf2 {[%emt 0:02:09]} 45. Bxf2 {[%emt 0:00:07]} Kd7 {[%emt 0:02:44]} 46. h4 {[%emt 0:01:46]} Rf5 {[%emt 0:01:18]} 47. Bd4 {[%emt 0:00:12]} Kc6 {[%emt 0:04:07]} 48. Bxg7 {[%emt 0:05:54]} Rf4 {[%emt 0:00:08]} 49. g3 {[%emt 0:02:21]} Rf1+ {[%emt 0:00:17]} 50. Kg2 {[%emt 0:01:42]} Rb1 {[%emt 0:00:01]} 51. Ba4+ {[%emt 0:00:30]} b5 {[%emt 0:00:06]} 52. Bxb5+ {[%emt 0:00:06]} Kxb5 {[%emt 0:00:35]} 53. Kf3 {[%emt 0:00:32]} a5 {[%emt 0:03:24]} 54. Ke2 {[%emt 0:02:50]} a4 {[%emt 0:00:19]} 55. Kd2 {[%emt 0:00:13]} a3 {[%emt 0:00:52]} 0-1

[Event "EYCC Girls-U14 2019"]
[Site "Bratislava"]
[Date "2019.08.07"]
[Round "6.17"]
[White "Sevcikova, Lucia"]
[Black "Zabrzanska, Weronika"]
[Result "1/2-1/2"]
[ECO "D35"]
[WhiteElo "1800"]
[BlackElo "1770"]
[Annotator "NA"]
[PlyCount "96"]
[EventDate "2019.08.02"]
[EventType "swiss"]
[EventCountry "SVK"]
[SourceTitle "playchess.com"]
[Source "ChessBase"]
[SourceQuality "1"]
[TimeControl "40/5400+30:1800+30"]

1. d4 {[%emt 0:00:00]} d5 {[%emt 0:00:00]} 2. c4 {[%emt 0:00:00]} e6 {[%emt 0:00:00]} 3. Nc3 {[%emt 0:00:00]} Nf6 {[%emt 0:00:00]} 4. cxd5 {[%emt 0:00:00]} exd5 {[%emt 0:00:00]} 5. Bg5 {[%emt 0:00:19]} Be7 {[%emt 0:00:00]} 6. e3 {[%emt 0:00:14]} O-O {[%emt 0:00:07]} 7. Bd3 {[%emt 0:00:21]} h6 {[%emt 0:00:09]} 8. Bh4 {[%emt 0:00:20]} b6 {[%emt 0:00:26]} 9. Qc2 {[%emt 0:00:47]} Bb7 {[%emt 0:00:08]} 10. Nge2 {[%emt 0:01:04]} c5 {[%emt 0:02:03]} 11. Rd1 {[%emt 0:05:56]} c4 {[%emt 0:09:38]} 12. Bf5 {[%emt 0:00:51]} g6 {[%emt 0:04:12]} 13. Bxg6 {[%emt 0:06:10]} fxg6 {[%emt 0:00:16]} 14. Qxg6+ {[%emt 0:00:04]} Kh8 {[%emt 0:00:08]} 15. Qxh6+ {[%emt 0:00:54]} Nh7 {[%emt 0:04:23]} 16. Bxe7 {[%emt 0:20:33]} Qxe7 {[%emt 0:00:13]} 17. Nf4 {[%emt 0:01:14]} Qf6 {[%emt 0:09:52]} 18. Qxf6+ {[%emt 0:01:23]} Rxf6 {[%emt 0:01:32]} 19. Ncxd5 {[%emt 0:00:30]} Rf7 {[%emt 0:01:07]} 20. Ke2 {[%emt 0:01:49]} Nc6 {[%emt 0:03:43]} 21. f3 {[%emt 0:02:32]} Nf6 {[%emt 0:02:29]} 22. Nxf6 {[%emt 0:01:23]} Rxf6 {[%emt 0:00:10]} 23. a3 {[%emt 0:02:51]} Rd8 {[%emt 0:02:08]} 24. g3 {[%emt 0:04:32]} b5 {[%emt 0:06:20]} 25. h4 {[%emt 0:02:17]} a5 {[%emt 0:00:49]} 26. h5 {[%emt 0:05:35]} b4 {[%emt 0:01:13]} 27. Ng6+ {[%emt 0:02:40]} Kh7 {[%emt 0:01:12]} 28. Nh4 {[%emt 0:00:11]} bxa3 {[%emt 0:11:59]} 29. bxa3 {[%emt 0:00:05]} Na7 {[%emt 0:04:04]} 30. Rc1 {[%emt 0:02:43]} Ba6 {[%emt 0:05:51]} 31. Kf2 {[%emt 0:01:45]} Rb8 {[%emt 0:01:09]} 32. g4 {[%emt 0:03:04]} Rb2+ {[%emt 0:01:09]} 33. Kg3 {[%emt 0:00:17]} Rc6 {[%emt 0:02:28]} 34. g5 {[%emt 0:02:30]} Bc8 {[%emt 0:11:03]} 35. Ng6 {[%emt 0:03:40]} Rb5 {[%emt 0:11:08]} 36. Ne5 {[%emt 0:01:10]} Rxe5 {[%emt 0:03:52]} 37. dxe5 {[%emt 0:00:04]} c3 {[%emt 0:01:10]} 38. h6 {[%emt 0:02:47]} Nb5 {[%emt 0:00:57]} 39. a4 {[%emt 0:00:29]} Nc7 {[%emt 0:01:10]} 40. Rxc3 {[%emt 0:00:00]} Rxc3 {[%emt 0:00:00]} 41. g6+ {[%emt 0:01:43]} Kh8 {[%emt 0:03:41]} 42. Rd1 {[%emt 0:03:13]} Ne6 {[%emt 0:00:45]} 43. f4 {[%emt 0:07:13]} Rxe3+ {[%emt 0:11:04]} 44. Kf2 {[%emt 0:13:05]} Re4 {[%emt 0:01:23]} 45. Rc1 {[%emt 0:05:08]} Rxf4+ {[%emt 0:05:57]} 46. Kg3 {[%emt 0:00:11]} Bd7 {[%emt 0:03:41]} 47. Rb1 {[%emt 0:01:32]} Rb4 {[%emt 0:01:19]} 48. Rf1 {[%emt 0:02:43]} Be8 {[%emt 0:07:08]} 1/2-1/2

[Event "EYCC Girls-U14 2019"]
[Site "Bratislava"]
[Date "2019.08.07"]
[Round "6.18"]
[White "Batagan, Ilinca-Petra"]
[Black "Kralj, Nika"]
[Result "1/2-1/2"]
[ECO "A10"]
[WhiteElo "1767"]
[BlackElo "1807"]
[Annotator "NA"]
[PlyCount "139"]
[EventDate "2019.08.02"]
[EventType "swiss"]
[EventCountry "SVK"]
[SourceTitle "playchess.com"]
[Source "ChessBase"]
[SourceQuality "1"]
[TimeControl "40/5400+30:1800+30"]

1. c4 d6 {[%emt 0:00:00]} 2. g3 {[%emt 0:00:00]} g6 {[%emt 0:00:00]} 3. Bg2 {[%emt 0:00:00]} e5 {[%emt 0:00:03]} 4. Nc3 {[%emt 0:00:27]} Bg7 {[%emt 0:00:09]} 5. Nf3 {[%emt 0:00:36]} f5 {[%emt 0:00:08]} 6. d4 {[%emt 0:00:52]} e4 {[%emt 0:05:44]} 7. Ng5 {[%emt 0:00:53]} Nc6 {[%emt 0:00:53]} 8. d5 {[%emt 0:00:48]} Ne5 {[%emt 0:00:39]} 9. f3 {[%emt 0:02:47]} h6 {[%emt 0:10:21]} 10. Ne6 {[%emt 0:00:37]} Bxe6 {[%emt 0:00:33]} 11. dxe6 {[%emt 0:00:06]} exf3 {[%emt 0:04:12]} 12. exf3 {[%emt 0:00:35]} Ne7 {[%emt 0:05:11]} 13. Qe2 {[%emt 0:08:27]} N5c6 {[%emt 0:04:14]} 14. Be3 {[%emt 0:11:08]} Nd4 {[%emt 0:08:33]} 15. Bxd4 {[%emt 0:00:18]} Bxd4 {[%emt 0:00:01]} 16. Qd3 {[%emt 0:03:06]} Nc6 {[%emt 0:09:29]} 17. O-O-O {[%emt 0:02:54]} Bg7 {[%emt 0:08:43]} 18. Kb1 {[%emt 0:04:19]} Qf6 {[%emt 0:01:18]} 19. f4 {[%emt 0:03:04]} O-O {[%emt 0:03:48]} 20. Rhe1 {[%emt 0:04:44]} Rfe8 {[%emt 0:03:58]} 21. Qd2 {[%emt 0:02:19]} Ne7 {[%emt 0:03:44]} 22. Nd5 {[%emt 0:10:17]} Nxd5 {[%emt 0:00:14]} 23. cxd5 {[%emt 0:00:35]} Kh7 {[%emt 0:09:06]} 24. h3 {[%emt 0:05:34]} c6 {[%emt 0:02:21]} 25. g4 {[%emt 0:02:19]} c5 {[%emt 0:04:46]} 26. gxf5 {[%emt 0:06:43]} gxf5 {[%emt 0:00:09]} 27. Bf3 {[%emt 0:00:19]} Qh4 {[%emt 0:01:30]} 28. Qd3 {[%emt 0:05:52]} Qf6 {[%emt 0:01:53]} 29. Re2 {[%emt 0:03:10]} Re7 {[%emt 0:01:13]} 30. Bg4 {[%emt 0:01:47]} Rf8 {[%emt 0:00:02]} 31. Rg1 {[%emt 0:01:03]} Kh8 {[%emt 0:02:29]} 32. Bh5 {[%emt 0:02:17]} b5 {[%emt 0:05:11]} 33. Reg2 {[%emt 0:03:41]} Qd4 {[%emt 0:04:10]} 34. Qg3 {[%emt 0:02:37]} Qxd5 {[%emt 0:01:02]} 35. Bf7 {[%emt 0:02:51]} Rfxf7 {[%emt 0:00:13]} 36. exf7 {[%emt 0:00:09]} Qxf7 {[%emt 0:00:40]} 37. Qd3 {[%emt 0:03:25]} Qe6 {[%emt 0:01:11]} 38. Rg6 {[%emt 0:02:28]} Qe4 {[%emt 0:00:28]} 39. Rxd6 {[%emt 0:01:43]} Qxf4 {[%emt 0:00:18]} 40. Rd7 {[%emt 0:00:00]} Qf2 {[%emt 0:00:00]} 41. Rd8+ {[%emt 0:11:22]} Kh7 {[%emt 0:00:58]} 42. Rxg7+ {[%emt 0:00:25]} Rxg7 {[%emt 0:00:56]} 43. Rd7 {[%emt 0:00:27]} Qe1+ {[%emt 0:11:19]} 44. Kc2 {[%emt 0:00:46]} Qe4 {[%emt 0:03:09]} 45. Qxe4 {[%emt 0:00:54]} fxe4 {[%emt 0:00:02]} 46. Rd5 {[%emt 0:01:38]} Rg2+ {[%emt 0:01:36]} 47. Kc1 {[%emt 0:00:25]} Rg5 {[%emt 0:09:55]} 48. Rd7+ {[%emt 0:00:37]} Kg6 {[%emt 0:00:42]} 49. Rxa7 {[%emt 0:00:23]} Rd5 {[%emt 0:00:32]} 50. a4 {[%emt 0:02:21]} bxa4 {[%emt 0:00:20]} 51. Rxa4 {[%emt 0:00:05]} Kf5 {[%emt 0:00:45]} 52. Ra8 {[%emt 0:00:29]} Kf4 {[%emt 0:01:20]} 53. Rh8 {[%emt 0:00:36]} h5 {[%emt 0:00:14]} 54. Rf8+ {[%emt 0:00:21]} Rf5 {[%emt 0:04:28]} 55. Re8 {[%emt 0:00:29]} Re5 {[%emt 0:01:51]} 56. Rf8+ {[%emt 0:02:55]} Rf5 {[%emt 0:00:03]} 57. Re8 {[%emt 0:01:01]} Ke3 58. Kd1 {[%emt 0:00:40]} Rd5+ {[%emt 0:01:28]} 59. Ke1 {[%emt 0:01:36]} c4 {[%emt 0:00:25]} 60. Rc8 {[%emt 0:01:38]} Kd3 {[%emt 0:00:20]} 61. Re8 {[%emt 0:01:47]} Rb5 {[%emt 0:00:33]} 62. Rh8 {[%emt 0:00:31]} Ke3 {[%emt 0:00:46]} 63. Kd1 {[%emt 0:01:50]} Rxb2 {[%emt 0:00:32]} 64. Rxh5 {[%emt 0:00:48]} Rh2 {[%emt 0:00:23]} 65. Rh8 {[%emt 0:01:33]} Rd2+ {[%emt 0:00:29]} 66. Kc1 {[%emt 0:00:37]} Rh2 {[%emt 0:00:36]} 67. Kd1 {[%emt 0:01:06]} Rd2+ {[%emt 0:00:22]} 68. Kc1 {[%emt 0:00:47]} c3 {[%emt 0:00:39]} 69. h4 {[%emt 0:00:40]} Rh2 70. Rd8 1/2-1/2